fUST/lending_fUST_20250412
["ID","MTS","AMOUNT","RATE_DAILY","PERIOD"]
[357741827,1744416633569,-151.0,0.0002477,7]
[357741828,1744416633578,-151.0,0.0002477,7]
[357741829,1744416633588,-1758.471386,0.0002477,7]
[357741830,1744416633598,-288.953688,0.0002477,7]
[357741831,1744416633607,-288.953688,0.0002477,7]
[357741832,1744416633617,-151.0,0.0002477,7]
[357741833,1744416633627,-151.0,0.0002477,3]
[357741834,1744416633636,-151.0,0.0002477,7]
[357741835,1744416633646,-151.0,0.0002477,7]
[357741836,1744416633656,-151.0,0.0002477,7]
[357741837,1744416633667,-151.0,0.0002477,7]
[357741838,1744416633679,-385.027698,0.0002477,7]
[357741839,1744416633691,-385.027698,0.0002477,7]
[357741840,1744416633701,-151.0,0.0002477,7]
[357741841,1744416633711,-151.0,0.0002477,7]
[357741842,1744416633722,-151.0,0.0002477,7]
[357741843,1744416633732,-188.605316,0.0002477,7]
[357741844,1744416633741,-188.605316,0.0002477,7]
[357741845,1744416633751,-188.605316,0.0002477,7]
[357741846,1744416633762,-188.605316,0.0002477,7]
[357741847,1744416633772,-188.605316,0.0002477,7]
[357741848,1744416633782,-188.605316,0.0002477,7]
[357741849,1744416633792,-151.0,0.0002477,7]
[357741850,1744416633802,-151.0,0.0002477,7]
[357741851,1744416633811,-151.0,0.0002477,7]
[357741852,1744416633821,-151.0,0.0002477,7]
[357741853,1744416633831,-151.0,0.0002477,7]
[357741854,1744416633841,-151.0,0.0002477,7]
[357741855,1744416633852,-151.0,0.0002477,7]
[357741856,1744416633862,-151.0,0.0002477,7]
[357741857,1744416633871,-151.0,0.0002477,7]
[357741858,1744416633881,-151.0,0.0002477,7]
[357741859,1744416633891,-151.0,0.0002477,7]
[357741860,1744416633902,-151.0,0.0002477,7]
[357741861,1744416633912,-151.0,0.0002477,7]
[357741862,1744416633922,-151.0,0.0002477,7]
[357741863,1744416633932,-151.0,0.0002477,7]
[357741864,1744416633942,-151.0,0.0002477,7]
[357741865,1744416633952,-151.0,0.0002477,7]
[357741866,1744416633962,-151.0,0.0002477,7]
[357741867,1744416633972,-151.0,0.0002477,7]
[357741868,1744416633982,-151.0,0.0002477,7]
[357741869,1744416633992,-231.679839,0.0002477,7]
[357741870,1744416634002,-151.0,0.0002477,7]
[357741871,1744416634012,-151.0,0.0002477,7]
[357741872,1744416634022,-151.0,0.0002477,7]
[357741873,1744416634033,-151.0,0.0002477,7]
[357741874,1744416634044,-151.0,0.0002477,7]
[357741875,1744416634055,-164.141578,0.0002477,7]
[357741876,1744416634065,-151.0,0.0002477,7]
[357741877,1744416634076,-151.0,0.0002477,7]
[357741878,1744416634086,-151.0,0.0002477,7]
[357741879,1744416634096,-151.0,0.0002477,7]
[357741880,1744416634106,-151.0,0.0002477,7]
[357741881,1744416634116,-151.0,0.0002477,7]
[357741882,1744416634125,-151.0,0.0002477,7]
[357741883,1744416634135,-151.0,0.0002477,7]
[357741884,1744416634145,-151.0,0.0002477,7]
[357741885,1744416634155,-151.0,0.0002477,7]
[357741886,1744416634166,-151.0,0.0002477,7]
[357741887,1744416634178,-151.0,0.0002477,7]
[357741888,1744416634189,-151.0,0.0002477,7]
[357741889,1744416634199,-151.0,0.0002477,7]
[357741890,1744416634209,-151.0,0.0002477,7]
[357741891,1744416634219,-625.51361,0.0002477,7]
[357741892,1744416634230,-151.0,0.0002477,7]
[357741893,1744416634240,-151.0,0.0002477,7]
[357741894,1744416634251,-625.51361,0.0002477,7]
[357741895,1744416634262,-151.0,0.0002477,7]
[357741896,1744416634273,-625.51361,0.0002477,7]
[357741897,1744416634284,-625.51361,0.0002477,7]
[357741898,1744416634294,-625.51361,0.0002477,7]
[357741899,1744416634307,-625.51361,0.0002477,7]
[357741900,1744416634316,-151.0,0.0002477,7]
[357741901,1744416634327,-151.0,0.0002477,7]
[357741902,1744416634337,-151.0,0.0002477,7]
[357741903,1744416634347,-151.0,0.0002477,7]
[357741904,1744416634357,-151.0,0.0002477,7]
[357741905,1744416634367,-151.0,0.0002477,7]
[357741906,1744416634377,-151.0,0.0002477,7]
[357741907,1744416634388,-151.0,0.0002477,7]
[357741908,1744416634398,-151.0,0.0002477,7]
[357741909,1744416634408,-151.0,0.0002477,7]
[357741910,1744416634419,-151.0,0.0002477,7]
[357741911,1744416634429,-236.599482,0.0002477,7]
[357741912,1744416634439,-330.752978,0.0002477,7]
[357741913,1744416634449,-330.752978,0.0002477,7]
[357741914,1744416634460,-330.752978,0.0002477,7]
[357741915,1744416634470,-330.752978,0.0002477,7]
[357741916,1744416634481,-330.752978,0.0002477,7]
[357741917,1744416634491,-330.752978,0.0002477,7]
[357741918,1744416634501,-151.0,0.0002477,7]
[357741919,1744416634511,-251.688297,0.0002477,7]
[357741920,1744416634522,-151.0,0.0002477,7]
[357741921,1744416634532,-151.0,0.0002477,7]
[357741922,1744416634542,-152.027562,0.0002477,7]
[357741923,1744416634552,-151.0,0.0002477,7]
[357741924,1744416634562,-151.0,0.0002477,7]
[357741925,1744416634572,-151.0,0.0002477,7]
[357741926,1744416634582,-151.0,0.0002477,7]
[357741927,1744416634593,-151.0,0.0002477,7]
[357741928,1744416634602,-220.817762,0.0002477,7]
[357741929,1744416634612,-217.997938,0.0002477,2]
[357741930,1744416634622,-217.997938,0.0002477,2]
[357741931,1744416634633,-217.997938,0.0002477,2]
[357741932,1744416634643,-217.997938,0.0002477,2]
[357741933,1744416634653,-217.997938,0.0002477,2]
[357741934,1744416634663,-217.997938,0.0002477,2]
[357741935,1744416634674,-151.0,0.0002477,7]
[357741936,1744416634685,-151.0,0.0002477,7]
[357741937,1744416634695,-151.0,0.0002477,7]
[357741938,1744416634704,-151.0,0.0002477,7]
[357741939,1744416634715,-151.0,0.0002477,7]
[357741940,1744416634724,-151.0,0.0002477,7]
[357741941,1744416634734,-151.0,0.0002477,7]
[357741942,1744416634743,-151.0,0.0002477,7]
[357741943,1744416634754,-151.0,0.0002477,7]
[357741944,1744416634764,-165.628683,0.0002477,7]
[357741945,1744416634773,-376.180418,0.0002477,7]
[357741946,1744416634783,-376.180418,0.0002477,7]
[357741947,1744416634792,-376.180418,0.0002477,7]
[357741948,1744416634803,-376.180418,0.0002477,7]
[357741949,1744416634812,-376.180418,0.0002477,7]
[357741950,1744416634822,-376.180418,0.0002477,7]
[357741951,1744416634833,-151.0,0.0002477,7]
[357741952,1744416634844,-151.0,0.0002477,7]
[357741953,1744416634854,-151.0,0.0002477,7]
[357741954,1744416634864,-273.899461,0.0002477,7]
[357741955,1744416634874,-151.0,0.0002477,7]
[357741956,1744416634885,-151.0,0.0002477,7]
[357741957,1744416634895,-151.0,0.0002477,7]
[357741958,1744416634905,-151.0,0.0002477,7]
[357741959,1744416634915,-151.0,0.0002477,7]
[357741960,1744416634926,-216.700204,0.0002477,7]
[357741961,1744416634935,-151.0,0.0002477,7]
[357741962,1744416634945,-151.0,0.0002477,7]
[357741963,1744416634955,-151.0,0.0002477,7]
[357741964,1744416634964,-151.0,0.0002477,7]
[357741965,1744416634973,-151.0,0.0002477,7]
[357741966,1744416634983,-301.354912,0.0002477,7]
[357741967,1744416634994,-301.354912,0.0002477,7]
[357741968,1744416635004,-301.354912,0.0002477,7]
[357741969,1744416635013,-561.114871,0.0002477,7]
[357741970,1744416635023,-301.354912,0.0002477,7]
[357741971,1744416635032,-561.114871,0.0002477,7]
[357741972,1744416635042,-561.114871,0.0002477,7]
[357741973,1744416635052,-561.114871,0.0002477,7]
[357741974,1744416635062,-301.354912,0.0002477,7]
[357741975,1744416635072,-301.354912,0.0002477,7]
[357741976,1744416635081,-301.354912,0.0002477,7]
[357741977,1744416635091,-561.114871,0.0002477,7]
[357741978,1744416635100,-301.354912,0.0002477,7]
[357741979,1744416635109,-561.114871,0.0002477,7]
[357741980,1744416635118,-561.114871,0.0002477,7]
[357741981,1744416635128,-561.114871,0.0002477,7]
[357741982,1744416635138,-151.0,0.000248,5]
[357741983,1744416635148,-151.0,0.000248,9]
[357741984,1744416635158,-151.0,0.000248,7]
[357741985,1744416635167,-282.0,0.000248,7]
[357741986,1744416635179,-151.0,0.000248,7]
[357741987,1744416635189,-151.0,0.000248,7]
[357741988,1744416635199,-385.027698,0.000248,7]
[357741989,1744416635208,-385.027698,0.000248,7]
[357741990,1744416635218,-151.0,0.000248,7]
[357741991,1744416635227,-353.11018896,0.000248,2]
[357741992,1744416635237,-151.0,0.000248,7]
[357741993,1744416635247,-151.0,0.000248,7]
[357741994,1744416635257,-151.0,0.000248,7]
[357741995,1744416635267,-151.0,0.00024833,2]
[357741996,1744416635277,-192.0,0.00024842,2]
[357741997,1744416635287,-411.29474576,0.00024873,2]
[357741998,1744416635296,-500.0,0.00024873,2]
[357741999,1744416635307,-500.0,0.00024873,2]
[357742000,1744416635316,-463.23376878,0.00024873,2]
[357742001,1744416635326,-500.0,0.00024873,2]
[357742002,1744416635336,-151.0,0.00024873,7]
[357742003,1744416635346,-1758.471386,0.00024873,7]
[357742004,1744416635356,-288.953688,0.00024873,7]
[357742005,1744416635366,-288.953688,0.00024873,7]
[357742006,1744416635376,-151.0,0.00024873,3]
[357742007,1744416635386,-151.0,0.00024873,7]
[357742008,1744416635395,-151.0,0.00024873,7]
[357742009,1744416635406,-151.0,0.00024873,7]
[357742010,1744416635415,-151.0,0.00024873,7]
[357742011,1744416635425,-151.0,0.00024873,7]
[357742012,1744416635435,-221.264094,0.00024873,7]
[357742013,1744416635445,-204.317854,0.00024873,7]
[357742014,1744416635455,-151.0,0.00024873,7]
[357742015,1744416635465,-151.0,0.00024873,7]
[357742016,1744416635475,-151.0,0.00024873,7]
[357742017,1744416635486,-217.997938,0.00024873,2]
[357742018,1744416635496,-217.997938,0.00024873,2]
[357742019,1744416635506,-376.180418,0.00024873,7]
[357742020,1744416635515,-376.180418,0.00024873,7]
[357742021,1744416635525,-301.354912,0.00024873,7]
[357742022,1744416635535,-561.114871,0.00024873,7]
[357742023,1744416635546,-301.354912,0.00024873,7]
[357742024,1744416635556,-561.114871,0.00024873,7]
[357742025,1744416635566,-265.6098782,0.00024899,2]
[357742026,1744416635577,-180.80946545,0.000249,5]
[357742027,1744416635591,-180.80946545,0.000249,5]
[357742028,1744416635601,-180.80946545,0.000249,5]
[357742029,1744416635611,-180.80946545,0.000249,5]
[357742030,1744416635621,-180.80946545,0.000249,5]
[357742031,1744416635631,-180.80946545,0.000249,5]
[357742032,1744416635642,-180.80946545,0.000249,5]
[357742033,1744416635651,-180.80946545,0.000249,5]
[357742034,1744416635663,-180.80946545,0.000249,5]
[357742035,1744416635675,-180.80946545,0.000249,5]
[357742036,1744416635686,-180.80946545,0.000249,5]
[357742037,1744416635696,-180.80946545,0.000249,5]
[357742038,1744416635706,-180.80946545,0.000249,5]
[357742039,1744416635716,-180.80946545,0.000249,5]
[357742040,1744416635726,-180.80946545,0.000249,5]
[357742041,1744416635736,-180.80946545,0.000249,5]
[357742042,1744416635746,-180.80946545,0.000249,5]
[357742043,1744416635757,-180.80946545,0.000249,5]
[357742044,1744416635768,-361.4189309,0.000249,5]
[357742045,1744416635778,-151.0,0.000249,7]
[357742046,1744416635788,-151.0,0.000249,7]
[357742047,1744416635798,-151.0,0.000249,7]
[357742048,1744416635808,-151.0,0.000249,7]
[357742049,1744416635818,-151.0,0.000249,7]
[357742050,1744416635828,-151.0,0.000249,7]
[357742051,1744416635838,-151.0,0.000249,7]
[357742052,1744416635847,-411.128011,0.000249,2]
[357742053,1744416636002,-411.128011,0.000249,2]
[357742054,1744416636013,-411.128011,0.000249,2]
[357742055,1744416636023,-411.128011,0.000249,2]
[357742056,1744416636033,-151.0,0.000249,7]
[357742057,1744416636043,-151.0,0.000249,7]
[357742058,1744416636053,-151.0,0.000249,7]
[357742059,1744416636063,-151.0,0.000249,7]
[357742060,1744416636073,-151.0,0.000249,7]
[357742061,1744416636084,-1758.471386,0.000249,7]
[357742062,1744416636094,-1758.471386,0.000249,7]
[357742063,1744416636104,-288.953688,0.000249,7]
[357742064,1744416636114,-288.953688,0.000249,7]
[357742065,1744416636123,-288.953688,0.000249,7]
[357742066,1744416636133,-288.953688,0.000249,7]
[357742067,1744416636143,-287.97804,0.000249,3]
[357742068,1744416636152,-151.0,0.000249,7]
[357742069,1744416636162,-151.0,0.000249,7]
[357742070,1744416636172,-151.0,0.000249,7]
[357742071,1744416636188,-151.0,0.000249,7]
[357742072,1744416636198,-151.0,0.000249,7]
[357742073,1744416636208,-151.0,0.000249,7]
[357742074,1744416636218,-151.0,0.000249,7]
[357742075,1744416636229,-151.0,0.000249,7]
[357742076,1744416636239,-385.027698,0.000249,7]
[357742077,1744416636249,-385.027698,0.000249,7]
[357742078,1744416636258,-385.027698,0.000249,7]
[357742079,1744416636268,-385.027698,0.000249,7]
[357742080,1744416636277,-385.027698,0.000249,7]
[357742081,1744416636287,-385.027698,0.000249,7]
[357742082,1744416636297,-151.0,0.000249,7]
[357742083,1744416636308,-151.0,0.000249,7]
[357742084,1744416636318,-151.0,0.000249,7]
[357742085,1744416636328,-151.0,0.000249,7]
[357742086,1744416636338,-151.0,0.000249,7]
[357742087,1744416636348,-151.0,0.000249,7]
[357742088,1744416636358,-151.0,0.000249,7]
[357742089,1744416636368,-188.605316,0.000249,7]
[357742090,1744416636379,-188.605316,0.000249,7]
[357742091,1744416636388,-188.605316,0.000249,7]
[357742092,1744416636398,-188.605316,0.000249,7]
[357742093,1744416636407,-151.0,0.000249,7]
[357742094,1744416636417,-151.0,0.000249,7]
[357742095,1744416636427,-151.0,0.000249,7]
[357742096,1744416636437,-151.0,0.000249,7]
[357742097,1744416636448,-151.0,0.000249,7]
[357742098,1744416636458,-151.0,0.000249,7]
[357742099,1744416636468,-151.0,0.000249,7]
[357742100,1744416636478,-151.0,0.000249,7]
[357742101,1744416636488,-151.0,0.000249,7]
[357742102,1744416636497,-151.0,0.000249,7]
[357742103,1744416636507,-151.0,0.000249,7]
[357742104,1744416636516,-151.0,0.000249,7]
[357742105,1744416636526,-151.0,0.000249,7]
[357742106,1744416636535,-151.0,0.000249,7]
[357742107,1744416636545,-185.226241,0.000249,7]
[357742108,1744416636555,-164.334373,0.000249,7]
[357742109,1744416636564,-151.0,0.000249,7]
[357742110,1744416636574,-151.0,0.000249,7]
[357742111,1744416636584,-151.0,0.000249,7]
[357742112,1744416636594,-261.827441,0.000249,7]
[357742113,1744416636604,-625.51361,0.000249,7]
[357742114,1744416636614,-151.0,0.000249,7]
[357742115,1744416636624,-625.51361,0.000249,7]
[357742116,1744416636635,-625.51361,0.000249,7]
[357742117,1744416636645,-625.51361,0.000249,7]
[357742118,1744416636654,-151.0,0.000249,7]
[357742119,1744416636664,-151.0,0.000249,7]
[357742120,1744416636679,-330.752978,0.000249,7]
[357742121,1744416636689,-330.752978,0.000249,7]
[357742122,1744416636699,-330.752978,0.000249,7]
[357742123,1744416636709,-330.752978,0.000249,7]
[357742124,1744416636721,-151.0,0.000249,7]
[357742125,1744416636732,-151.0,0.000249,7]
[357742126,1744416636742,-217.997938,0.000249,2]
[357742127,1744416636754,-217.997938,0.000249,2]
[357742128,1744416636765,-217.997938,0.000249,2]
[357742129,1744416636775,-217.997938,0.000249,2]
[357742130,1744416636785,-44741.93480302,0.000249,2]
[357742131,1744416637124,-1999.99999,0.000249,2]
[357742171,1744416640407,-500.0,0.00024266,2]
[357742172,1744416640417,-500.0,0.00024266,2]
[357742173,1744416640426,-500.0,0.00024266,2]
[357742174,1744416640437,-500.0,0.00024266,2]
[357742175,1744416640446,-500.0,0.00024266,2]
[357742176,1744416640639,-500.0,0.00024266,2]
[357742177,1744416640651,-399.34456255,0.00024266,2]
[357742178,1744416640661,-516.95059486,0.00024266,2]
[357742179,1744416640673,-500.0,0.00024266,2]
[357742180,1744416640686,-500.0,0.00024266,2]
[357742181,1744416640697,-411.92965931,0.00024266,2]
[357742182,1744416640707,-500.0,0.00024266,2]
[357742183,1744416640718,-500.0,0.00024266,2]
[357742184,1744416640728,-500.0,0.00024266,2]
[357742185,1744416640738,-500.0,0.00024266,2]
[357742186,1744416640748,-500.0,0.00024266,2]
[357742187,1744416640758,-292.7912246,0.00024572,2]
[357742188,1744416640770,-194.72792766,0.0002467,2]
[357742189,1744416640780,-201.93286099,0.00024725,2]
[357742190,1744416640790,-209.40437684,0.0002478,2]
[357742191,1744416640800,-217.15233878,0.00024835,2]
[357742192,1744416640810,-225.18697532,0.0002489,2]
[357742193,1744416640820,-115102.14801786,0.000249,2]
[357742202,1744416643140,-207.4,0.00024285,2]
[357742203,1744416643152,-183.56220807,0.00024899,2]
[357742204,1744416643162,-609.03779193,0.000249,2]
[357742210,1744416646261,-183.56220807,0.00024899,2]
[357742211,1744416646271,-652.67779193,0.000249,2]
[357742233,1744417832143,-398.13938519,0.00023197,2]
[357742236,1744417832156,-101.86061481,0.00023197,2]
[357742238,1744417832166,-271.77345669,0.00023871,2]
[357742240,1744417832178,-418.88,0.00023871,2]
[357742301,1744417838198,-9.34654331,0.00023871,2]
[357742302,1744417838209,-500.0,0.00023949,2]
[357742303,1744417838219,-700.0,0.0002409,2]
[357742305,1744417838228,-485.81201718,0.00024139,2]
[357742307,1744417838238,-279.2044909,0.00024152,2]
[357742308,1744417838247,-250.0,0.00024166,2]
[357742309,1744417838257,-700.0,0.00024532,2]
[357742311,1744417838267,-241.9048427,0.00024551,2]
[357742312,1744417838277,-300.0,0.0002465,2]
[357742314,1744417838286,-300.0,0.0002465,2]
[357742315,1744417838296,-355.82791732,0.0002465,2]
[357742317,1744417838306,-500.0,0.0002465,2]
[357742318,1744417838315,-552.20493576,0.0002465,2]
[357742320,1744417838325,-39360.08630009,0.00024651,2]
[357742322,1744417838408,-9751.14708446,0.00024651,2]
[357742323,1744417838418,-500.0,0.00024673,2]
[357742324,1744417838428,-402.0,0.00024716,2]
[357742325,1744417838437,-151.0,0.0002477,7]
[357742326,1744417838446,-151.0,0.0002477,7]
[357742327,1744417838456,-151.0,0.0002477,7]
[357742328,1744417838467,-151.0,0.0002477,7]
[357742329,1744417838476,-151.0,0.0002477,7]
[357742330,1744417838486,-151.0,0.0002477,7]
[357742331,1744417838499,-151.0,0.0002477,7]
[357742332,1744417838509,-151.0,0.0002477,7]
[357742333,1744417838518,-151.0,0.0002477,7]
[357742334,1744417838527,-151.0,0.0002477,7]
[357742335,1744417838537,-224.672588,0.0002477,7]
[357742336,1744417838546,-151.0,0.0002477,7]
[357742337,1744417838555,-151.0,0.0002477,7]
[357742338,1744417838565,-152.687025,0.0002477,7]
[357742339,1744417838575,-152.687025,0.0002477,7]
[357742340,1744417838585,-152.687025,0.0002477,7]
[357742341,1744417838595,-152.687025,0.0002477,7]
[357742342,1744417838604,-152.687025,0.0002477,7]
[357742343,1744417838613,-152.687025,0.0002477,7]
[357742344,1744417838623,-152.687025,0.0002477,7]
[357742345,1744417838632,-152.687025,0.0002477,7]
[357742346,1744417838641,-500.0,0.00024773,2]
[357742347,1744417838651,-200.0,0.00024773,2]
[357742348,1744417838660,-285.82675463,0.00024773,2]
[357742349,1744417838669,-500.0,0.00024773,2]
[357742350,1744417838679,-367.77850893,0.00024773,2]
[357742351,1744417838688,-500.0,0.00024773,2]
[357742352,1744417838698,-465.88,0.0002479,3]
[357742353,1744417838708,-250.0,0.00024799,2]
[357742354,1744417838718,-202.33924613,0.00024799,2]
[357742355,1744417838727,-500.0,0.00024799,2]
[357742356,1744417838738,-242.96969124,0.00024799,2]
[357742357,1744417838747,-315.48706218,0.00024799,2]
[357742358,1744417838757,-64418.70707981,0.000248,2]
[357742359,1744417838769,-8341.5,0.000248,2]
[357742360,1744417838780,-999.552,0.000248,2]
[357742363,1744417840483,-258.22,0.00024716,2]
[357742364,1744417840497,-284.78,0.00024716,2]
[357742365,1744417840507,-912.26101291,0.000248,2]
[357742366,1744417840543,-1082.99504255,0.000248,2]
[357742377,1744417843190,-250.0,0.00023097,2]
[357742378,1744417843200,-7158.69243,0.000248,2]
[357742391,1744417846383,-706.0,0.00024716,2]
[357742392,1744417846394,-7637.74032372,0.000248,2]
[357742394,1744418016662,224.0,0.00027,30]
[357742433,1744419032341,-250.0,0.00022997,2]
[357742435,1744419032353,-636.430016,0.00023047,2]
[357742437,1744419032363,-333.41411269,0.00023069,2]
[357742440,1744419032402,-166.58588731,0.00023069,2]
[357742441,1744419032416,-1041.66666667,0.00023485,2]
[357742442,1744419032427,-700.0,0.00024105,2]
[357742443,1744419032438,-209.4033682,0.00024152,2]
[357742444,1744419032448,-700.0,0.0002459,2]
[357742445,1744419032458,-885.69125026,0.00024655,2]
[357742446,1744419032469,-300.0,0.00024672,2]
[357742447,1744419032479,-300.0,0.00024672,2]
[357742448,1744419032489,-500.0,0.00024673,2]
[357742449,1744419032499,-200.0,0.00024673,2]
[357742450,1744419032510,-500.0,0.00024673,2]
[357742451,1744419032520,-182.22090041,0.00024673,2]
[357742527,1744419046432,-300.0,0.00024673,2]
[357742528,1744419046542,-17.77909959,0.00024673,2]
[357742529,1744419046552,-171.58183737,0.00024673,2]
[357742530,1744419046562,-500.0,0.00024673,2]
[357742531,1744419046571,-500.53549288,0.00024673,2]
[357742532,1744419046581,-500.0,0.00024673,2]
[357742533,1744419046590,-511.12613421,0.00024673,2]
[357742534,1744419046599,-249.97743595,0.00024673,2]
[357742541,1744419317968,170.0,0.00027,30]
[357742544,1744419550983,1554.47105425,0.00027,30]
[357742546,1744419709097,500.0,0.00027,30]
[357742557,1744419897821,5000.0,0.00027,30]
[357742558,1744419983799,589.00052,0.00027,30]
[357742560,1744420094117,500.0,0.00027,30]
[357742561,1744420111375,500.0,0.00027,30]
[357742562,1744420157816,4969.45725584,0.00027,120]
[357742563,1744420175141,500.0,0.00027,30]
[357742566,1744420198513,500.0,0.00027,30]
[357742581,1744420232711,-250.0,0.00022897,2]
[357742583,1744420232721,-700.0,0.00023221,2]
[357742585,1744420232731,-500.0,0.00023274,2]
[357742587,1744420232741,-700.0,0.00023432,2]
[357742589,1744420232751,-700.0,0.00023468,2]
[357742591,1744420232760,-600.0,0.00023612,2]
[357742593,1744420232769,-466.04060086,0.00024078,2]
[357742595,1744420232779,-157.0525262,0.00024152,2]
[357742597,1744420232788,-165.43203413,0.00024343,2]
[357742599,1744420232798,-1041.66666667,0.00024473,2]
[357742601,1744420232808,-799.19322379,0.00024488,2]
[357742603,1744420232817,-600.0,0.00024499,2]
[357742605,1744420232827,-1340.2076407,0.0002453,2]
[357742606,1744420232838,-300.0,0.00024572,2]
[357742608,1744420232849,-502.21148346,0.00024573,2]
[357742610,1744420232858,-200.0,0.00024573,2]
[357742612,1744420232868,-250.02256405,0.00024573,2]
[357742613,1744420232878,-500.0,0.00024573,2]
[357742614,1744420232888,-500.98434631,0.00024573,2]
[357742615,1744420232898,-500.0,0.00024573,2]
[357742616,1744420232908,-500.0,0.00024573,2]
[357742617,1744420232919,-500.0,0.00024573,2]
[357742618,1744420232929,-500.0,0.00024573,2]
[357742619,1744420232939,-608.64787584,0.00024573,2]
[357742620,1744420232948,-151.0,0.00024585,2]
[357742621,1744420232958,-151.0,0.00024585,2]
[357742622,1744420232969,-207.4,0.00024585,2]
[357742623,1744420232978,-500.0,0.00024587,2]
[357742624,1744420232988,-14738.38929141,0.00024588,2]
[357742625,1744420233000,-21445.56972532,0.00024588,2]
[357742626,1744420233010,-1630.29416368,0.00024588,3]
[357742627,1744420233020,-15543.04131724,0.00024588,2]
[357742628,1744420233030,-197.3,0.0002459,3]
[357742629,1744420233040,-197.3,0.0002459,3]
[357742630,1744420233050,-170.07878387,0.00024599,2]
[357742631,1744420233060,-570.84094352,0.00024599,2]
[357742632,1744420233069,-3007.79850151,0.000246,2]
[357742636,1744420238853,-200.0,0.00024585,2]
[357742638,1744420238863,-843.46089801,0.000246,2]
[357742640,1744420238874,-989.04920268,0.000246,2]
[357742681,1744420243398,500.0,0.00027,30]
[357742685,1744420243676,-4381.38401714,0.000246,2]
[357742686,1744420243737,-792.64,0.000246,2]
[357742700,1744420246681,-2206.81400001,0.000246,2]
[357742701,1744420246694,-4007.47274476,0.000246,2]
[357742702,1744420246749,-8009.46025948,0.000246,2]
[357742703,1744420246762,-2723.18492575,0.000246,2]
[357742704,1744420254027,500.0,0.00027,30]
[357742705,1744420316220,500.0,0.00027,30]
[357742706,1744420328046,500.0,0.00027,30]
[357742707,1744421008502,418.0,0.00027,30]
[357742732,1744421431918,-280.73974111,0.000228,2]
[357742735,1744421431930,-1118.088388,0.00022898,2]
[357742737,1744421431940,-500.0,0.00022973,2]
[357742739,1744421431950,-500.0,0.00022973,2]
[357742740,1744421431960,-283.33751316,0.00022973,2]
[357742741,1744421431971,-500.0,0.00022973,2]
[357742743,1744421431981,-500.0,0.00022973,2]
[357742745,1744421431991,-503.87903185,0.00022973,2]
[357742747,1744421432001,-300.0,0.00022995,2]
[357742749,1744421432011,-300.0,0.00022995,2]
[357742751,1744421432021,-500.0,0.00022996,2]
[357742753,1744421432031,-500.0,0.00022996,2]
[357742755,1744421432042,-500.0,0.00022996,2]
[357742757,1744421432052,-500.0,0.00022996,2]
[357742759,1744421432061,-500.0,0.00022996,2]
[357742761,1744421432071,-500.0,0.00022996,2]
[357742763,1744421432080,-375.49231452,0.00022996,2]